[Event "Turkish Youth Championship 2024"]
[Site "Samsun"]
[Date "2024.05.21"]
[Round "5"]
[White "Uslu, Tarik"]
[Black "Danaci, Ege"]
[Result "0-1"]
[ECO "B45"]
[WhiteElo "1483"]
[BlackElo "2031"]
[Annotator "RC"]
[PlyCount "82"]
[EventDate "2024.05.18"]
[EventType "swiss"]
[EventCountry "TUR"]
[SourceTitle "playchess.com"]
[Source "ChessBase"]
[SourceQuality "1"]
[TimeControl "5400+30"]

1. e4 {[%emt 0:01:00]} c5 {[%emt 0:01:00]} 2. Nf3 {[%emt 0:00:00]} e6 {[%emt 0:00:30]} 3. d4 {[%emt 0:00:00]} cxd4 {[%emt 0:00:30]} 4. Nxd4 {[%emt 0:00:30]} Nf6 {[%emt 0:00:30]} 5. Nc3 {[%emt 0:01:30]} Nc6 {[%emt 0:00:30]} 6. f3 {[%emt 0:00:30]} Qb6 {[%emt 0:05:30]} 7. Be3 {[%emt 0:04:30]} Bc5 {[%emt 0:10:30]} 8. Na4 {[%emt 0:01:30]} Qa5+ {[%emt 0:00:00]} 9. c3 {[%emt 0:00:30]} Bxd4 {[%emt 0:01:00]} 10. Bxd4 {[%emt 0:00:30]} Nxd4 {[%emt 0:00:00]} 11. Qxd4 {[%emt 0:00:00]} e5 {[%emt 0:00:00]} 12. Qd1 {[%emt 0:08:00]} O-O {[%emt 0:00:30]} 13. Bd3 {[%emt 0:04:30]} d5 {[%emt 0:01:30]} 14. b4 {[%emt 0:04:30]} Qd8 {[%emt 0:02:30]} 15. exd5 {[%emt 0:02:30]} Nxd5 {[%emt 0:01:30]} 16. Be4 {[%emt 0:10:30]} Be6 {[%emt 0:22:30]} 17. Bxd5 {[%emt 0:16:30]} Bxd5 {[%emt 0:00:30]} 18. O-O {[%emt 0:00:30]} Rc8 {[%emt 0:01:30]} 19. Rf2 {[%emt 0:02:30]} Bc6 {[%emt 0:01:30]} 20. Nc5 {[%emt 0:04:30]} b6 {[%emt 0:00:30]} 21. Nb3 {[%emt 0:02:30]} Bb5 {[%emt 0:02:30]} 22. Qe1 {[%emt 0:02:30]} Qc7 {[%emt 0:00:30]} 23. Rc2 {[%emt 0:01:30]} Bd3 {[%emt 0:02:30]} 24. Rcc1 {[%emt 0:00:30]} Rfd8 {[%emt 0:01:30]} 25. a4 {[%emt 0:03:30]} a5 {[%emt 0:01:30]} 26. c4 {[%emt 0:01:30]} axb4 {[%emt 0:07:30]} 27. Qxb4 {[%emt 0:00:00]} h5 {[%emt 0:02:30]} 28. c5 {[%emt 0:02:00]} bxc5 {[%emt 0:01:30]} 29. Rxc5 {[%emt 0:01:30]} Qa7 {[%emt 0:00:30]} 30. Kh1 {[%emt 0:03:30]} Rb8 {[%emt 0:01:30]} 31. Qh4 {[%emt 0:04:18]} Qd7 {[%emt 0:10:30]} 32. Nc1 {[%emt 0:05:49]} Bf1 {[%emt 0:05:06]} 33. Qf2 {[%emt 0:04:34]} Qd1 {[%emt 0:02:45]} 34. Nb3 {[%emt 0:00:38]} Bxg2+ {[%emt 0:00:29]} 35. Kxg2 {[%emt 0:00:18]} Qxb3 {[%emt 0:00:03]} 36. Rxe5 {[%emt 0:00:33]} Rd3 {[%emt 0:02:15]} 37. a5 {[%emt 0:02:32]} Qc3 {[%emt 0:01:08]} 38. Rae1 {[%emt 0:02:32]} Rb2 {[%emt 0:00:03]} 39. Re8+ {[%emt 0:00:08]} Kh7 {[%emt 0:00:05]} 40. R8e2 {[%emt 0:00:00]} Rxe2 {[%emt 0:00:19]} 41. Qxe2 {[%emt 0:00:00]} Rd2 {[%emt 0:00:05]} 0-1

[Event "Turkish Youth Championship 2024"]
[Site "Samsun"]
[Date "2024.05.21"]
[Round "5"]
[White "Akyuz, Pars"]
[Black "Nurdogan, Ilgin Destina"]
[Result "1-0"]
[ECO "E32"]
[WhiteElo "1461"]
[BlackElo "1699"]
[Annotator "NA RC"]
[PlyCount "127"]
[EventDate "2024.05.18"]
[EventType "swiss"]
[EventCountry "TUR"]
[SourceTitle "playchess.com"]
[Source "ChessBase"]
[SourceQuality "1"]
[TimeControl "5400+30"]

1. d4 {[%emt 0:01:00]} Nf6 {[%emt 0:01:00]} 2. c4 {[%emt 0:00:30]} e6 {[%emt 0:00:30]} 3. Nc3 {[%emt 0:00:30]} Bb4 {[%emt 0:00:30]} 4. Qc2 {[%emt 0:00:30]} O-O {[%emt 0:00:00]} 5. Nf3 {[%emt 0:00:00]} b6 {[%emt 0:00:00]} 6. e4 {[%emt 0:04:00]} d5 {[%emt 0:00:00]} 7. e5 {[%emt 0:04:30]} Ne4 {[%emt 0:00:00]} 8. a3 {[%emt 0:01:30]} Bxc3+ {[%emt 0:02:30]} 9. bxc3 {[%emt 0:02:30]} Bb7 {[%emt 0:01:30]} 10. Bd3 {[%emt 0:00:00]} Nd7 {[%emt 0:05:30]} 11. cxd5 {[%emt 0:00:00]} exd5 {[%emt 0:00:30]} 12. O-O {[%emt 0:00:30]} h6 {[%emt 0:04:30]} 13. Nd2 {[%emt 0:01:30]} Nxd2 {[%emt 0:05:30]} 14. Bxd2 {[%emt 0:00:30]} a5 {[%emt 0:01:30]} 15. Rae1 {[%emt 0:03:30]} Ba6 {[%emt 0:01:30]} 16. Bxa6 {[%emt 0:00:30]} Rxa6 {[%emt 0:00:30]} 17. f4 {[%emt 0:00:30]} b5 {[%emt 0:05:30]} 18. f5 {[%emt 0:00:30]} a4 {[%emt 0:02:30]} 19. Qd3 {[%emt 0:07:30]} Re8 {[%emt 0:03:30]} 20. Qg3 {[%emt 0:01:30]} Kh8 {[%emt 0:03:30]} 21. f6 {[%emt 0:01:30]} Rg8 {[%emt 0:01:30]} 22. Qh4 {[%emt 0:00:30]} Kh7 {[%emt 0:00:30]} 23. Rf3 {[%emt 0:03:30]} g5 {[%emt 0:01:30]} 24. Qh5 {[%emt 0:02:30]} Rg6 {[%emt 0:01:30]} 25. Rh3 {[%emt 0:10:30]} Nxf6 {[%emt 0:00:30]} 26. exf6 {[%emt 0:00:30]} Qxf6 {[%emt 0:00:30]} 27. Rf3 {[%emt 0:17:30]} Qg7 {[%emt 0:00:30]} 28. Re5 {[%emt 0:07:30]} c5 {[%emt 0:06:30]} 29. Rxd5 {[%emt 0:05:30]} cxd4 {[%emt 0:03:30]} 30. Rxd4 {[%emt 0:00:30]} Raf6 {[%emt 0:04:30]} 31. Qg4 {[%emt 0:04:30]} Qf8 {[%emt 0:09:30]} 32. Qe4 {[%emt 0:05:22]} Rxf3 {[%emt 0:04:30]} 33. Qxf3 {[%emt 0:00:06]} Kg7 {[%emt 0:00:00]} 34. c4 {[%emt 0:01:57]} Rf6 {[%emt 0:03:00]} 35. Qe3 {[%emt 0:01:07]} Re6 {[%emt 0:04:30]} 36. Qc3 {[%emt 0:01:18]} Rf6 {[%emt 0:02:30]} 37. cxb5 {[%emt 0:00:56]} Qe7 {[%emt 0:00:30]} 38. Rd3 {[%emt 0:02:16]} g4 {[%emt 0:03:33]} 39. Be3 {[%emt 0:01:00]} Kh7 {[%emt 0:04:11]} 40. Qc2 {[%emt 0:01:36]} Kg8 {[%emt 0:00:41]} 41. Qxa4 {[%emt 0:01:35]} Qe5 {[%emt 0:01:48]} 42. Qxg4+ {[%emt 0:01:53]} Kh7 {[%emt 0:00:56]} 43. Qd4 {[%emt 0:00:37]} Qxb5 {[%emt 0:06:22]} 44. Qxf6 {[%emt 0:03:00]} Qxd3 {[%emt 0:00:02]} 45. Qxf7+ {[%emt 0:00:11]} Kh8 {[%emt 0:00:01]} 46. Qf8+ {[%emt 0:00:24]} Kh7 {[%emt 0:00:10]} 47. Qxh6+ {[%emt 0:00:02]} Kg8 {[%emt 0:00:00]} 48. Qf4 {[%emt 0:00:01]} Qxa3 {[%emt 0:01:06]} 49. Qg3+ {[%emt 0:00:26]} Kh7 {[%emt 0:00:15]} 50. Qf2 {[%emt 0:00:24]} Qa1+ {[%emt 0:01:01]} 51. Qf1 {[%emt 0:00:30]} Qa3 {[%emt 0:00:00]} 52. Bf2 {[%emt 0:00:00]} Qb3 {[%emt 0:00:00]} 53. h3 {[%emt 0:00:18]} Qb8 {[%emt 0:01:05]} 54. g3 {[%emt 0:00:07]} Qb3 {[%emt 0:00:00]} 55. Kh2 {[%emt 0:00:08]} Qf3 {[%emt 0:00:25]} 56. Qg2 {[%emt 0:00:06]} Qf5 {[%emt 0:00:03]} 57. g4 {[%emt 0:00:24]} Qf4+ {[%emt 0:00:23]} 58. Qg3 {[%emt 0:00:05]} Qc4 {[%emt 0:00:20]} 59. g5 {[%emt 0:00:41]} Kg7 {[%emt 0:00:38]} 60. h4 {[%emt 0:00:27]} Qf7 {[%emt 0:01:04]} 61. Bd4+ {[%emt 0:00:23]} Kg8 {[%emt 0:00:56]} 62. Qb8+ {[%emt 0:00:08]} Kh7 {[%emt 0:00:00]} 63. Qh8+ {[%emt 0:00:38]} Kg6 {[%emt 0:00:00]} 64. Qf6+ {[%emt 0:00:00]} 1-0

[Event "Turkish Youth Championship 2024"]
[Site "Samsun"]
[Date "2024.05.21"]
[Round "6"]
[White "Cilek, Bora"]
[Black "Yogurtcuoglu, Cagan"]
[Result "1-0"]
[ECO "B31"]
[WhiteElo "2246"]
[BlackElo "1714"]
[Annotator "RC"]
[PlyCount "50"]
[EventDate "2024.05.18"]
[EventType "swiss"]
[EventCountry "TUR"]
[SourceTitle "playchess.com"]
[Source "ChessBase"]
[SourceQuality "1"]
[TimeControl "5400+30"]

1. e4 {[%emt 0:01:00]} c5 {[%emt 0:01:00]} 2. Nf3 {[%emt 0:00:30]} Nc6 {[%emt 0:00:00]} 3. Bb5 {[%emt 0:00:30]} g6 {[%emt 0:00:00]} 4. Bxc6 {[%emt 0:00:30]} dxc6 {[%emt 0:00:30]} 5. d3 {[%emt 0:00:00]} Bg7 {[%emt 0:00:30]} 6. O-O {[%emt 0:00:00]} Nf6 {[%emt 0:00:00]} 7. h3 {[%emt 0:00:30]} Nd7 {[%emt 0:00:00]} 8. Nc3 {[%emt 0:00:30]} e5 {[%emt 0:00:00]} 9. Be3 {[%emt 0:00:30]} Qe7 {[%emt 0:00:00]} 10. Qd2 {[%emt 0:00:00]} Nf8 {[%emt 0:00:30]} 11. Bh6 {[%emt 0:01:00]} f6 {[%emt 0:00:00]} 12. Nh2 {[%emt 0:16:30]} Ne6 {[%emt 0:01:00]} 13. Ne2 {[%emt 0:01:30]} O-O {[%emt 0:02:30]} 14. Bxg7 {[%emt 0:03:30]} Qxg7 {[%emt 0:00:30]} 15. f4 {[%emt 0:00:30]} exf4 {[%emt 0:07:30]} 16. Nxf4 {[%emt 0:00:30]} Nxf4 {[%emt 0:01:30]} 17. Qxf4 {[%emt 0:00:30]} f5 {[%emt 0:00:30]} 18. exf5 {[%emt 0:05:30]} Rxf5 {[%emt 0:03:30]} 19. Qc4+ {[%emt 0:01:30]} Rd5 {[%emt 0:00:30]} 20. Rae1 {[%emt 0:06:30]} Bd7 {[%emt 0:00:30]} 21. Ng4 {[%emt 0:03:30]} Bxg4 {[%emt 0:01:30]} 22. Qxg4 {[%emt 0:00:30]} Qd7 {[%emt 0:01:30]} 23. Qh4 {[%emt 0:19:30]} g5 {[%emt 0:09:30]} 24. Qh6 {[%emt 0:01:30]} Re8 {[%emt 0:02:30]} 25. Kh1 {[%emt 0:04:30]} Rxe1 {[%emt 0:04:30]} 1-0

[Event "Turkish Youth Championship 2024"]
[Site "Samsun"]
[Date "2024.05.21"]
[Round "6"]
[White "Topuz, Mirac Melih"]
[Black "Akyuz, Pars"]
[Result "1-0"]
[ECO "D02"]
[WhiteElo "2079"]
[BlackElo "1461"]
[Annotator "RC"]
[PlyCount "99"]
[EventDate "2024.05.18"]
[EventType "swiss"]
[EventCountry "TUR"]
[SourceTitle "playchess.com"]
[Source "ChessBase"]
[SourceQuality "1"]
[TimeControl "5400+30"]

1. d4 {[%emt 0:07:00]} d5 {[%emt 0:01:00]} 2. Nf3 {[%emt 0:00:30]} Nf6 {[%emt 0:00:00]} 3. g3 {[%emt 0:00:30]} c6 {[%emt 0:00:00]} 4. Bg2 {[%emt 0:00:00]} Bg4 {[%emt 0:00:30]} 5. O-O {[%emt 0:00:00]} e6 {[%emt 0:00:30]} 6. Nbd2 {[%emt 0:02:30]} Be7 {[%emt 0:00:30]} 7. h3 {[%emt 0:02:30]} Bxf3 {[%emt 0:00:30]} 8. Nxf3 {[%emt 0:00:00]} O-O {[%emt 0:00:30]} 9. c4 {[%emt 0:06:00]} Nbd7 {[%emt 0:01:30]} 10. Qc2 {[%emt 0:01:30]} Rc8 {[%emt 0:00:30]} 11. c5 {[%emt 0:03:30]} Re8 {[%emt 0:04:30]} 12. b4 {[%emt 0:13:30]} Bf8 {[%emt 0:08:30]} 13. Bb2 {[%emt 0:02:30]} g6 {[%emt 0:05:30]} 14. Rad1 {[%emt 0:06:30]} Bg7 {[%emt 0:00:00]} 15. Nd2 {[%emt 0:03:30]} e5 {[%emt 0:02:00]} 16. dxe5 {[%emt 0:12:30]} Nxe5 {[%emt 0:00:00]} 17. e4 {[%emt 0:00:30]} Qc7 {[%emt 0:10:00]} 18. f4 {[%emt 0:00:30]} Nc4 {[%emt 0:02:30]} 19. Nxc4 {[%emt 0:00:30]} dxc4 {[%emt 0:00:30]} 20. Qxc4 {[%emt 0:00:30]} Nh5 {[%emt 0:01:30]} 21. Bxg7 {[%emt 0:00:30]} Nxg7 {[%emt 0:00:30]} 22. Rd6 {[%emt 0:00:30]} Rcd8 {[%emt 0:01:30]} 23. Rfd1 {[%emt 0:00:00]} Rxd6 {[%emt 0:01:30]} 24. Rxd6 {[%emt 0:00:00]} Rd8 {[%emt 0:00:30]} 25. Qd4 {[%emt 0:17:30]} Ne6 {[%emt 0:01:30]} 26. Rxd8+ {[%emt 0:05:44]} Nxd8 {[%emt 0:00:30]} 27. Qd6 {[%emt 0:08:50]} Qc8 {[%emt 0:01:30]} 28. Bf1 {[%emt 0:01:10]} Ne6 {[%emt 0:01:30]} 29. Bc4 {[%emt 0:00:14]} Ng7 {[%emt 0:02:30]} 30. Qe7 {[%emt 0:03:00]} Qe8 {[%emt 0:01:30]} 31. Qxb7 {[%emt 0:00:04]} Ne6 {[%emt 0:00:30]} 32. Bxe6 {[%emt 0:00:46]} Qxe6 {[%emt 0:00:30]} 33. Qb8+ {[%emt 0:02:12]} Kg7 {[%emt 0:01:30]} 34. Qe5+ {[%emt 0:00:30]} Qxe5 {[%emt 0:00:00]} 35. fxe5 {[%emt 0:00:00]} Kf8 {[%emt 0:00:00]} 36. Kf2 {[%emt 0:01:27]} Ke7 {[%emt 0:00:30]} 37. Ke3 {[%emt 0:00:07]} Ke6 {[%emt 0:01:30]} 38. Kd4 {[%emt 0:00:00]} a6 {[%emt 0:00:30]} 39. g4 {[%emt 0:00:14]} g5 {[%emt 0:00:30]} 40. a4 {[%emt 0:01:04]} h6 {[%emt 0:00:00]} 41. b5 {[%emt 0:00:22]} cxb5 {[%emt 0:01:00]} 42. axb5 {[%emt 0:00:06]} axb5 {[%emt 0:00:30]} 43. c6 {[%emt 0:00:00]} Ke7 {[%emt 0:00:30]} 44. Kc5 {[%emt 0:00:01]} Kd8 {[%emt 0:00:30]} 45. Kxb5 {[%emt 0:00:30]} Kc7 {[%emt 0:00:30]} 46. Kc5 {[%emt 0:00:00]} Kc8 {[%emt 0:00:00]} 47. Kd6 {[%emt 0:00:04]} Kd8 {[%emt 0:00:00]} 48. c7+ {[%emt 0:00:15]} Kc8 {[%emt 0:00:30]} 49. Kc6 {[%emt 0:00:03]} f5 {[%emt 0:00:30]} 50. e6 {[%emt 0:00:10]} 1-0

[Event "Turkish Youth Championship 2024"]
[Site "Samsun"]
[Date "2024.05.21"]
[Round "6"]
[White "Danaci, Ege"]
[Black "Uzdemir, Ali Poyraz"]
[Result "1-0"]
[ECO "C90"]
[WhiteElo "2031"]
[BlackElo "1898"]
[Annotator "RC"]
[PlyCount "91"]
[EventDate "2024.05.18"]
[EventType "swiss"]
[EventCountry "TUR"]
[SourceTitle "playchess.com"]
[Source "ChessBase"]
[SourceQuality "1"]
[TimeControl "5400+30"]

1. e4 {[%emt 0:01:00]} e5 {[%emt 0:01:00]} 2. Nf3 {[%emt 0:00:30]} Nc6 {[%emt 0:00:00]} 3. Bb5 {[%emt 0:01:30]} a6 {[%emt 0:00:00]} 4. Ba4 {[%emt 0:00:00]} Nf6 {[%emt 0:01:30]} 5. O-O {[%emt 0:00:00]} b5 {[%emt 0:01:30]} 6. Bb3 {[%emt 0:00:00]} Be7 {[%emt 0:01:30]} 7. Re1 {[%emt 0:03:00]} d6 {[%emt 0:01:30]} 8. c3 {[%emt 0:00:00]} Bg4 {[%emt 0:00:30]} 9. d3 {[%emt 0:00:00]} O-O {[%emt 0:02:30]} 10. Nbd2 {[%emt 0:00:30]} h6 {[%emt 0:06:30]} 11. Nf1 {[%emt 0:00:30]} Na5 {[%emt 0:02:30]} 12. Bc2 {[%emt 0:00:00]} c5 {[%emt 0:00:30]} 13. h3 {[%emt 0:03:00]} Bc8 {[%emt 0:09:30]} 14. d4 {[%emt 0:00:30]} Qc7 {[%emt 0:01:30]} 15. b3 {[%emt 0:04:30]} Bd7 {[%emt 0:03:30]} 16. d5 {[%emt 0:06:30]} Nb7 {[%emt 0:01:30]} 17. c4 {[%emt 0:04:30]} Ne8 {[%emt 0:06:30]} 18. Ng3 {[%emt 0:00:30]} g5 {[%emt 0:01:30]} 19. Nh2 {[%emt 0:08:30]} Qc8 {[%emt 0:05:30]} 20. Nf5 {[%emt 0:16:30]} Bxf5 {[%emt 0:01:30]} 21. exf5 {[%emt 0:00:00]} Bf6 {[%emt 0:06:30]} 22. h4 {[%emt 0:01:00]} Qd8 {[%emt 0:05:30]} 23. Ng4 {[%emt 0:11:30]} Kg7 {[%emt 0:08:30]} 24. Nxf6 {[%emt 0:00:30]} Nxf6 {[%emt 0:02:30]} 25. hxg5 {[%emt 0:00:30]} hxg5 {[%emt 0:00:30]} 26. Bxg5 {[%emt 0:00:00]} Rh8 {[%emt 0:00:30]} 27. f4 {[%emt 0:02:00]} Qg8 {[%emt 0:02:30]} 28. fxe5 {[%emt 0:01:30]} dxe5 {[%emt 0:00:00]} 29. Qf3 {[%emt 0:03:30]} Re8 {[%emt 0:02:00]} 30. Qg3 {[%emt 0:00:30]} Nh5 {[%emt 0:00:30]} 31. f6+ {[%emt 0:01:30]} Kf8 {[%emt 0:00:30]} 32. Qe3 {[%emt 0:00:30]} Nf4 {[%emt 0:01:30]} 33. Bxf4 {[%emt 0:00:30]} Qg4 {[%emt 0:00:30]} 34. Bh6+ {[%emt 0:00:00]} Kg8 {[%emt 0:00:00]} 35. Qg5+ {[%emt 0:01:00]} Qxg5 {[%emt 0:00:00]} 36. Bxg5 {[%emt 0:00:00]} Nd6 {[%emt 0:00:00]} 37. Re3 {[%emt 0:01:00]} Rh5 {[%emt 0:00:00]} 38. Rg3 {[%emt 0:00:00]} Kh8 {[%emt 0:00:30]} 39. Be3 {[%emt 0:01:00]} bxc4 {[%emt 0:00:00]} 40. Bxc5 {[%emt 0:00:30]} Nb7 {[%emt 0:00:00]} 41. Be7 {[%emt 0:00:30]} cxb3 {[%emt 0:00:00]} 42. axb3 {[%emt 0:00:30]} e4 {[%emt 0:00:00]} 43. Bxe4 {[%emt 0:00:00]} Nc5 {[%emt 0:00:30]} 44. Bf3 {[%emt 0:00:00]} Rh7 {[%emt 0:00:00]} 45. Bxc5 {[%emt 0:00:30]} Re4 {[%emt 0:00:00]} 46. Bxe4 {[%emt 0:00:00]} 1-0

[Event "Turkish Youth Championship 2024"]
[Site "Samsun"]
[Date "2024.05.21"]
[Round "6"]
[White "Buyuk, Eymen Eren"]
[Black "Incecinar, Abdullah Mete"]
[Result "0-1"]
[ECO "E73"]
[WhiteElo "1999"]
[BlackElo "1643"]
[Annotator "RC"]
[PlyCount "52"]
[EventDate "2024.05.18"]
[EventType "swiss"]
[EventCountry "TUR"]
[SourceTitle "playchess.com"]
[Source "ChessBase"]
[SourceQuality "1"]
[TimeControl "5400+30"]

1. d4 {[%emt 0:01:00]} Nf6 {[%emt 0:01:00]} 2. c4 {[%emt 0:00:30]} g6 {[%emt 0:00:30]} 3. Nc3 {[%emt 0:00:30]} Bg7 {[%emt 0:00:30]} 4. e4 {[%emt 0:00:30]} d6 {[%emt 0:00:30]} 5. Be2 {[%emt 0:00:00]} O-O {[%emt 0:00:00]} 6. Be3 {[%emt 0:00:00]} Na6 {[%emt 0:00:00]} 7. g4 {[%emt 0:00:00]} c5 {[%emt 0:00:00]} 8. d5 {[%emt 0:00:00]} e6 {[%emt 0:00:00]} 9. g5 {[%emt 0:01:30]} Ne8 {[%emt 0:00:00]} 10. h4 {[%emt 0:00:30]} exd5 {[%emt 0:01:00]} 11. cxd5 {[%emt 0:01:30]} b5 {[%emt 0:09:30]} 12. Bxb5 {[%emt 0:07:30]} Rb8 {[%emt 0:01:30]} 13. Nge2 {[%emt 0:03:30]} Qa5 {[%emt 0:06:30]} 14. a4 {[%emt 0:06:30]} Bg4 {[%emt 0:13:30]} 15. O-O {[%emt 0:04:30]} Bf3 {[%emt 0:05:30]} 16. Qd2 {[%emt 0:07:30]} Nb4 {[%emt 0:09:30]} 17. Bf4 {[%emt 0:02:30]} f5 {[%emt 0:11:30]} 18. gxf6 {[%emt 0:13:30]} Bxf6 {[%emt 0:03:30]} 19. Qe3 {[%emt 0:01:30]} Bxe2 {[%emt 0:01:30]} 20. Nxe2 {[%emt 0:26:30]} Nc2 {[%emt 0:01:30]} 21. Qh3 {[%emt 0:00:30]} Nxa1 {[%emt 0:01:30]} 22. Rxa1 {[%emt 0:00:30]} Rxb5 {[%emt 0:05:30]} 23. Qe6+ {[%emt 0:00:30]} Kh8 {[%emt 0:00:30]} 24. Bxd6 {[%emt 0:00:30]} Rb6 {[%emt 0:03:30]} 25. e5 {[%emt 0:00:00]} Nxd6 {[%emt 0:00:30]} 26. exf6 {[%emt 0:01:00]} Ne8 {[%emt 0:01:30]} 0-1

[Event "Turkish Youth Championship 2024"]
[Site "Samsun"]
[Date "2024.05.21"]
[Round "6"]
[White "Ilgaz, Yusuf Kerem"]
[Black "Zerey, Demhat"]
[Result "1/2-1/2"]
[ECO "C78"]
[WhiteElo "1964"]
[BlackElo "1986"]
[Annotator "RC"]
[PlyCount "60"]
[EventDate "2024.05.18"]
[EventType "swiss"]
[EventCountry "TUR"]
[SourceTitle "playchess.com"]
[Source "ChessBase"]
[SourceQuality "1"]
[TimeControl "5400+30"]

1. e4 {[%emt 0:01:00]} e5 {[%emt 0:01:00]} 2. Nf3 {[%emt 0:00:00]} Nc6 {[%emt 0:00:30]} 3. Bb5 {[%emt 0:00:00]} a6 {[%emt 0:00:00]} 4. Ba4 {[%emt 0:00:30]} Nf6 {[%emt 0:00:00]} 5. O-O {[%emt 0:00:00]} b5 {[%emt 0:00:30]} 6. Bb3 {[%emt 0:00:00]} Bc5 {[%emt 0:00:00]} 7. a4 {[%emt 0:00:00]} Rb8 {[%emt 0:00:00]} 8. Nxe5 {[%emt 0:00:00]} Nxe5 {[%emt 0:00:30]} 9. d4 {[%emt 0:00:00]} Bxd4 {[%emt 0:00:00]} 10. Qxd4 {[%emt 0:00:00]} d6 {[%emt 0:02:00]} 11. f4 {[%emt 0:00:00]} Ng6 {[%emt 0:12:30]} 12. e5 {[%emt 0:00:00]} dxe5 {[%emt 0:01:30]} 13. Qxd8+ {[%emt 0:00:30]} Kxd8 {[%emt 0:00:00]} 14. fxe5 {[%emt 0:00:30]} Nxe5 {[%emt 0:01:00]} 15. axb5 {[%emt 0:00:30]} axb5 {[%emt 0:01:30]} 16. Nc3 {[%emt 0:00:00]} b4 {[%emt 0:10:30]} 17. Bf4 {[%emt 0:25:00]} Ng6 {[%emt 0:14:30]} 18. Rad1+ {[%emt 0:08:30]} Bd7 {[%emt 0:00:30]} 19. Nd5 {[%emt 0:14:30]} Nxd5 {[%emt 0:01:30]} 20. Rxd5 {[%emt 0:09:30]} Nxf4 {[%emt 0:00:30]} 21. Rxf4 {[%emt 0:00:00]} Kc8 {[%emt 0:06:30]} 22. Rg5 {[%emt 0:03:00]} g6 {[%emt 0:07:30]} 23. Rxf7 {[%emt 0:04:30]} Rb5 {[%emt 0:03:30]} 24. Rxb5 {[%emt 0:03:30]} Bxb5 {[%emt 0:01:30]} 25. Rf4 {[%emt 0:01:30]} c5 {[%emt 0:01:30]} 26. Bc4 {[%emt 0:02:30]} Bc6 {[%emt 0:00:30]} 27. Rf7 {[%emt 0:06:30]} Rd8 {[%emt 0:00:30]} 28. Bd3 {[%emt 0:01:30]} Rd7 {[%emt 0:00:30]} 29. Rf8+ {[%emt 0:00:30]} Kc7 {[%emt 0:00:30]} 30. Rf4 {[%emt 0:01:30]} Re7 {[%emt 0:00:30]} 1/2-1/2

[Event "Turkish Youth Championship 2024"]
[Site "Samsun"]
[Date "2024.05.21"]
[Round "6"]
[White "Dogan, Umut Anil"]
[Black "Kozan, Hayreddin"]
[Result "1-0"]
[ECO "D02"]
[WhiteElo "1959"]
[BlackElo "1600"]
[Annotator "RC"]
[PlyCount "67"]
[EventDate "2024.05.18"]
[EventType "swiss"]
[EventCountry "TUR"]
[SourceTitle "playchess.com"]
[Source "ChessBase"]
[SourceQuality "1"]
[TimeControl "5400+30"]

1. Nf3 {[%emt 0:01:00]} d5 {[%emt 0:01:00]} 2. g3 {[%emt 0:00:30]} Nd7 {[%emt 0:00:00]} 3. d4 {[%emt 0:01:30]} Nb6 {[%emt 0:00:00]} 4. Nbd2 {[%emt 0:03:30]} Nf6 {[%emt 0:00:30]} 5. c4 {[%emt 0:00:00]} dxc4 {[%emt 0:01:30]} 6. Nxc4 {[%emt 0:01:00]} Nxc4 {[%emt 0:00:30]} 7. Qa4+ {[%emt 0:00:30]} c6 {[%emt 0:00:00]} 8. Qxc4 {[%emt 0:00:00]} Bf5 {[%emt 0:00:00]} 9. Bg2 {[%emt 0:00:00]} Be4 {[%emt 0:02:30]} 10. O-O {[%emt 0:00:30]} e6 {[%emt 0:01:30]} 11. Bg5 {[%emt 0:01:30]} Be7 {[%emt 0:01:30]} 12. Rfd1 {[%emt 0:00:30]} Qd5 {[%emt 0:03:30]} 13. Qxd5 {[%emt 0:02:30]} exd5 {[%emt 0:02:30]} 14. Ne5 {[%emt 0:00:00]} Bxg2 {[%emt 0:15:30]} 15. Kxg2 {[%emt 0:00:00]} h6 {[%emt 0:02:30]} 16. Bf4 {[%emt 0:00:30]} O-O {[%emt 0:05:30]} 17. Rd3 {[%emt 0:00:30]} Ne4 {[%emt 0:14:30]} 18. Rb3 {[%emt 0:00:30]} Nd6 {[%emt 0:02:30]} 19. Rc1 {[%emt 0:05:30]} Rfc8 {[%emt 0:07:30]} 20. Nd3 {[%emt 0:00:30]} b6 {[%emt 0:01:30]} 21. Bxd6 {[%emt 0:02:30]} Bxd6 {[%emt 0:01:30]} 22. Rbc3 {[%emt 0:00:00]} c5 {[%emt 0:14:30]} 23. dxc5 {[%emt 0:00:00]} bxc5 {[%emt 0:00:30]} 24. Nxc5 {[%emt 0:00:30]} Be5 {[%emt 0:01:30]} 25. R3c2 {[%emt 0:00:30]} Rab8 {[%emt 0:02:22]} 26. Nd7 {[%emt 0:00:30]} Rxc2 {[%emt 0:01:05]} 27. Rxc2 {[%emt 0:00:30]} Rxb2 {[%emt 0:00:00]} 28. Rc8+ {[%emt 0:00:30]} Kh7 {[%emt 0:00:00]} 29. Nxe5 {[%emt 0:00:00]} Rxe2 {[%emt 0:01:21]} 30. Nxf7 {[%emt 0:00:00]} Rxa2 {[%emt 0:00:00]} 31. Rd8 {[%emt 0:00:30]} Rd2 {[%emt 0:00:31]} 32. Ne5 {[%emt 0:00:00]} a6 {[%emt 0:00:33]} 33. Rd6 {[%emt 0:00:00]} d4 {[%emt 0:00:45]} 34. Nf3 {[%emt 0:00:30]} 1-0